[Event "European School-ch 2019"]
[Site "Mamaia"]
[Date "2019.06.03"]
[Round "4.42"]
[White "Antal, Iris-Ileana"]
[Black "Ismayilova, Khanim"]
[Result "0-1"]
[ECO "A46"]
[WhiteElo "1057"]
[BlackElo "1225"]
[Annotator "NA"]
[PlyCount "108"]
[EventDate "2019.05.31"]
[EventType "swiss"]
[EventCountry "ROU"]
[SourceTitle "playchess.com"]
[Source "ChessBase"]
[SourceQuality "1"]
[TimeControl "40/5400+30:1800+30"]

1. d4 Nf6 2. Nf3 e6 3. c4 d5 4. g3 dxc4 5. Qa4+ {[%emt 0:02:10]} Nc6 {[%emt 0:03:11]} 6. Qxc4 {[%emt 0:00:19]} Be7 {[%emt 0:02:45]} 7. Qc2 {[%emt 0:01:42]} Nxd4 {[%emt 0:04:38]} 8. Nxd4 {[%emt 0:00:32]} Qxd4 {[%emt 0:00:03]} 9. Qxc7 {[%emt 0:01:16]} Ne4 {[%emt 0:06:45]} 10. e3 {[%emt 0:08:35]} Bb4+ {[%emt 0:00:12]} 11. Nc3 {[%emt 0:02:56]} Bxc3+ {[%emt 0:01:54]} 12. bxc3 {[%emt 0:00:23]} Qf6 {[%emt 0:07:33]} 13. f4 {[%emt 0:12:18]} Qxc3+ {[%emt 0:00:30]} 14. Qxc3 {[%emt 0:00:21]} Nxc3 {[%emt 0:00:02]} 15. Bb2 {[%emt 0:01:05]} Nd5 {[%emt 0:00:27]} 16. Bxg7 {[%emt 0:01:11]} Rg8 {[%emt 0:00:15]} 17. Bd4 {[%emt 0:00:39]} Nb4 {[%emt 0:00:40]} 18. Kd2 {[%emt 0:03:44]} Bd7 {[%emt 0:00:40]} 19. Bg2 {[%emt 0:00:38]} Bc6 {[%emt 0:00:28]} 20. Bxc6+ {[%emt 0:00:33]} Nxc6 {[%emt 0:00:28]} 21. Kd3 {[%emt 0:01:54]} Rd8 {[%emt 0:00:23]} 22. Rab1 {[%emt 0:01:09]} Nxd4 {[%emt 0:00:22]} 23. exd4 {[%emt 0:00:27]} Rd7 {[%emt 0:00:06]} 24. Rhc1 {[%emt 0:01:41]} Ke7 {[%emt 0:00:39]} 25. Ke4 {[%emt 0:01:08]} Rgd8 {[%emt 0:00:17]} 26. Rd1 {[%emt 0:01:04]} Rc8 {[%emt 0:02:24]} 27. d5 {[%emt 0:01:06]} f5+ {[%emt 0:01:13]} 28. Kf3 {[%emt 0:01:25]} exd5 {[%emt 0:01:06]} 29. Rb5 {[%emt 0:02:03]} Ke6 {[%emt 0:02:24]} 30. Re1+ {[%emt 0:04:58]} Kf6 {[%emt 0:00:05]} 31. Rd1 {[%emt 0:00:43]} d4 {[%emt 0:01:29]} 32. Rb4 {[%emt 0:02:05]} Rc3+ {[%emt 0:02:21]} 33. Ke2 {[%emt 0:02:05]} Rc2+ {[%emt 0:00:37]} 34. Rd2 {[%emt 0:01:06]} d3+ {[%emt 0:01:11]} 35. Ke3 {[%emt 0:05:33]} Rc3 {[%emt 0:00:36]} 36. Rb3 {[%emt 0:03:04]} Rxb3 {[%emt 0:00:10]} 37. axb3 {[%emt 0:00:12]} Ke6 {[%emt 0:00:18]} 38. Rxd3 {[%emt 0:00:19]} Rxd3+ {[%emt 0:00:01]} 39. Kxd3 {[%emt 0:00:40]} Kd5 {[%emt 0:00:11]} 40. h3 {[%emt 0:00:31]} h5 {[%emt 0:00:23]} 41. h4 {[%emt 0:32:29]} a5 {[%emt 0:30:12]} 42. Ke3 {[%emt 0:01:20]} b5 {[%emt 0:03:09]} 43. Kd3 {[%emt 0:00:16]} a4 {[%emt 0:00:28]} 44. bxa4 {[%emt 0:00:00]} bxa4 {[%emt 0:00:00]} 45. Kc3 {[%emt 0:00:00]} Ke4 {[%emt 0:00:00]} 46. g4 {[%emt 0:00:00]} fxg4 {[%emt 0:00:00]} 47. Kb4 {[%emt 0:00:00]} g3 {[%emt 0:00:00]} 48. Kxa4 {[%emt 0:00:00]} g2 {[%emt 0:00:00]} 49. Kb3 {[%emt 0:00:00]} g1=Q {[%emt 0:00:00]} 50. Kc4 {[%emt 0:00:00]} Qd4+ {[%emt 0:00:00]} 51. Kb3 {[%emt 0:00:00]} Kd3 {[%emt 0:00:00]} 52. Ka3 {[%emt 0:00:00]} Kc3 {[%emt 0:00:00]} 53. Ka2 {[%emt 0:00:00]} Qb4 {[%emt 0:00:00]} 54. Ka1 {[%emt 0:00:00]} Qb2# {[%emt 0:00:00]} 0-1

[Event "European School-ch 2019"]
[Site "Mamaia"]
[Date "2019.06.03"]
[Round "4.43"]
[White "Zarkua, Anastasia"]
[Black "State-Ungureanu, Elena-Anastasia"]
[Result "0-1"]
[ECO "A06"]
[WhiteElo "1108"]
[BlackElo "1057"]
[Annotator "NA"]
[PlyCount "78"]
[EventDate "2019.05.31"]
[EventType "swiss"]
[EventCountry "ROU"]
[SourceTitle "playchess.com"]
[Source "ChessBase"]
[SourceQuality "1"]
[TimeControl "40/5400+30:1800+30"]

1. Nf3 {[%emt 0:00:00]} d5 {[%emt 0:00:10]} 2. c4 {[%emt 0:00:00]} c6 {[%emt 0:02:25]} 3. e3 Nf6 {[%emt 0:01:19]} 4. d4 {[%emt 0:00:53]} Bg4 {[%emt 0:00:28]} 5. Nc3 {[%emt 0:00:49]} Nbd7 {[%emt 0:01:45]} 6. cxd5 {[%emt 0:01:01]} cxd5 {[%emt 0:00:30]} 7. Be2 {[%emt 0:00:30]} e6 {[%emt 0:00:20]} 8. O-O {[%emt 0:00:57]} Be7 {[%emt 0:00:13]} 9. h3 {[%emt 0:00:50]} Bh5 {[%emt 0:00:22]} 10. Bd2 {[%emt 0:00:29]} O-O {[%emt 0:00:21]} 11. Rc1 {[%emt 0:00:52]} Rc8 {[%emt 0:01:06]} 12. Qb3 {[%emt 0:01:12]} Qb6 {[%emt 0:01:34]} 13. Qxb6 {[%emt 0:00:50]} Nxb6 {[%emt 0:00:09]} 14. Nb5 {[%emt 0:01:38]} a6 {[%emt 0:00:57]} 15. Nc3 {[%emt 0:03:28]} Ne4 {[%emt 0:14:48]} 16. g4 {[%emt 0:02:45]} Nxd2 {[%emt 0:00:26]} 17. Nxd2 {[%emt 0:00:10]} Bg6 {[%emt 0:00:05]} 18. f4 {[%emt 0:01:21]} f5 {[%emt 0:06:20]} 19. Nb3 {[%emt 0:04:29]} Bb4 {[%emt 0:02:33]} 20. a3 {[%emt 0:02:02]} Bxc3 {[%emt 0:00:27]} 21. Rxc3 {[%emt 0:00:35]} Rxc3 {[%emt 0:00:06]} 22. bxc3 {[%emt 0:00:07]} Na4 {[%emt 0:00:12]} 23. c4 {[%emt 0:00:20]} Rc8 {[%emt 0:02:10]} 24. Rc1 {[%emt 0:00:35]} Nb6 {[%emt 0:01:15]} 25. c5 {[%emt 0:01:06]} Nd7 {[%emt 0:05:49]} 26. Na5 {[%emt 0:01:09]} b5 {[%emt 0:16:02]} 27. c6 {[%emt 0:05:16]} Nb6 {[%emt 0:01:28]} 28. Rc5 {[%emt 0:06:46]} Na4 {[%emt 0:00:41]} 29. Rc1 {[%emt 0:00:20]} Kf8 {[%emt 0:02:32]} 30. gxf5 {[%emt 0:04:21]} Bxf5 {[%emt 0:00:10]} 31. Bg4 {[%emt 0:00:08]} g6 {[%emt 0:00:36]} 32. Kf2 {[%emt 0:00:20]} Nb2 {[%emt 0:03:50]} 33. Bxf5 {[%emt 0:00:34]} gxf5 {[%emt 0:00:17]} 34. Kg3 {[%emt 0:00:33]} Nc4 {[%emt 0:00:22]} 35. Kf3 {[%emt 0:00:32]} Nxa5 {[%emt 0:00:15]} 36. c7 {[%emt 0:00:08]} Nc4 {[%emt 0:00:41]} 37. a4 {[%emt 0:00:29]} Rxc7 {[%emt 0:00:44]} 38. axb5 {[%emt 0:00:08]} axb5 {[%emt 0:00:08]} 39. Rb1 {[%emt 0:00:18]} Nd2+ {[%emt 0:00:05]} 0-1

[Event "European School-ch 2019"]
[Site "Mamaia"]
[Date "2019.06.03"]
[Round "4.44"]
[White "Levitan, Liel"]
[Black "Korolchuk, Vladyslava"]
[Result "0-1"]
[ECO "B22"]
[WhiteElo "1162"]
[BlackElo "1032"]
[Annotator "NA"]
[PlyCount "140"]
[EventDate "2019.05.31"]
[EventType "swiss"]
[EventCountry "ROU"]
[SourceTitle "playchess.com"]
[Source "ChessBase"]
[SourceQuality "1"]
[TimeControl "40/5400+30:1800+30"]

1. e4 {[%emt 0:00:00]} c5 {[%emt 0:00:43]} 2. c3 {[%emt 0:00:01]} Nf6 {[%emt 0:01:17]} 3. e5 {[%emt 0:00:16]} Nd5 {[%emt 0:00:51]} 4. d4 {[%emt 0:01:25]} cxd4 {[%emt 0:00:38]} 5. cxd4 {[%emt 0:00:07]} Nc6 {[%emt 0:00:29]} 6. Bc4 {[%emt 0:01:40]} Nb6 {[%emt 0:00:27]} 7. Bb5 {[%emt 0:00:53]} a6 {[%emt 0:00:52]} 8. Bd3 {[%emt 0:00:06]} Nxd4 {[%emt 0:01:34]} 9. Be3 {[%emt 0:01:26]} Nc6 {[%emt 0:02:45]} 10. Qb3 {[%emt 0:01:34]} e6 {[%emt 0:12:37]} 11. Qxb6 {[%emt 0:00:36]} Nxe5 {[%emt 0:06:05]} 12. Qxd8+ {[%emt 0:01:14]} Kxd8 {[%emt 0:00:24]} 13. Bc2 {[%emt 0:01:33]} Bb4+ {[%emt 0:03:01]} 14. Nd2 {[%emt 0:01:49]} Nc4 {[%emt 0:01:35]} 15. O-O-O {[%emt 0:05:41]} Nxe3 {[%emt 0:00:50]} 16. fxe3 {[%emt 0:01:32]} Bc5 {[%emt 0:00:23]} 17. e4 {[%emt 0:09:28]} Be3 {[%emt 0:01:35]} 18. Ngf3 {[%emt 0:04:16]} b5 {[%emt 0:01:15]} 19. Ne5 {[%emt 0:02:32]} Ke7 {[%emt 0:01:35]} 20. Rhf1 {[%emt 0:03:37]} f6 {[%emt 0:00:39]} 21. Ng4 {[%emt 0:02:22]} Bd4 {[%emt 0:02:02]} 22. Nf3 {[%emt 0:03:05]} Bc5 {[%emt 0:01:25]} 23. e5 {[%emt 0:02:47]} f5 {[%emt 0:02:43]} 24. Nf2 {[%emt 0:01:40]} Bb7 {[%emt 0:00:50]} 25. Nd3 {[%emt 0:06:55]} Be3+ {[%emt 0:00:49]} 26. Kb1 {[%emt 0:00:13]} Bd5 {[%emt 0:00:57]} 27. Nb4 {[%emt 0:02:32]} Bc4 {[%emt 0:01:14]} 28. Rfe1 {[%emt 0:02:33]} Bf2 {[%emt 0:00:35]} 29. Rh1 {[%emt 0:02:36]} a5 {[%emt 0:01:02]} 30. Nd3 {[%emt 0:02:15]} Bb6 {[%emt 0:01:01]} 31. Nf4 {[%emt 0:01:17]} g6 {[%emt 0:02:06]} 32. b3 {[%emt 0:03:28]} Bd5 {[%emt 0:00:59]} 33. Nxd5+ {[%emt 0:00:41]} exd5 {[%emt 0:00:06]} 34. Rxd5 {[%emt 0:01:14]} b4 {[%emt 0:00:40]} 35. Rhd1 {[%emt 0:02:28]} Rhd8 {[%emt 0:00:42]} 36. Bd3 {[%emt 0:02:01]} Ra7 {[%emt 0:00:52]} 37. Bb5 {[%emt 0:00:56]} Rc7 {[%emt 0:01:56]} 38. Ng5 {[%emt 0:03:03]} Rb7 {[%emt 0:01:13]} 39. Ba6 {[%emt 0:06:06]} Ra7 {[%emt 0:00:25]} 40. Bc4 {[%emt 0:00:00]} h6 {[%emt 0:00:00]} 41. Rb5 {[%emt 0:03:59]} Bc7 {[%emt 0:01:34]} 42. Nf7 {[%emt 0:04:16]} Rf8 {[%emt 0:01:20]} 43. Rbd5 {[%emt 0:02:34]} Bb6 {[%emt 0:01:02]} 44. e6 {[%emt 0:01:59]} dxe6 {[%emt 0:00:58]} 45. Rd6 Kxf7 {[%emt 0:02:29]} 46. Rxb6 {[%emt 0:03:36]} Re8 {[%emt 0:00:26]} 47. Rdd6 {[%emt 0:01:26]} Rae7 {[%emt 0:00:40]} 48. Kc2 {[%emt 0:01:23]} Kf6 {[%emt 0:00:12]} 49. Kd3 {[%emt 0:00:06]} Ke5 {[%emt 0:00:17]} 50. Ra6 {[%emt 0:05:19]} g5 {[%emt 0:00:23]} 51. Bb5 {[%emt 0:06:14]} Rc8 {[%emt 0:00:49]} 52. Rd7 {[%emt 0:03:09]} Rxd7+ {[%emt 0:00:31]} 53. Bxd7 {[%emt 0:00:15]} Rd8 {[%emt 0:00:34]} 54. Rxe6+ {[%emt 0:00:52]} Kd5 {[%emt 0:00:18]} 55. Re7 {[%emt 0:01:32]} Kd6 {[%emt 0:00:31]} 56. Rh7 {[%emt 0:01:43]} Rxd7 {[%emt 0:00:19]} 57. Rxd7+ {[%emt 0:00:11]} Kxd7 {[%emt 0:00:05]} 58. Ke3 {[%emt 0:00:59]} Kd6 {[%emt 0:00:20]} 59. Kf3 {[%emt 0:00:21]} Kd5 {[%emt 0:00:33]} 60. g4 {[%emt 0:07:28]} f4 {[%emt 0:00:37]} 61. h4 {[%emt 0:01:06]} Kd4 {[%emt 0:00:32]} 62. Ke2 {[%emt 0:04:44]} Ke4 {[%emt 0:00:19]} 63. Kf2 {[%emt 0:00:18]} f3 {[%emt 0:00:17]} 64. Kf1 {[%emt 0:00:10]} Ke3 {[%emt 0:00:16]} 65. Ke1 {[%emt 0:00:18]} f2+ {[%emt 0:00:57]} 66. Kf1 {[%emt 0:00:15]} Kf3 {[%emt 0:00:20]} 67. hxg5 {[%emt 0:00:18]} hxg5 {[%emt 0:00:15]} 68. a4 {[%emt 0:00:14]} bxa3 {[%emt 0:00:08]} 69. b4 {[%emt 0:00:11]} a2 {[%emt 0:00:08]} 70. bxa5 {[%emt 0:00:45]} a1=Q# {[%emt 0:00:06]} 0-1

[Event "European School-ch 2019"]
[Site "Mamaia"]
[Date "2019.06.03"]
[Round "4.45"]
[White "Babic, Masa"]
[Black "Zhapova, Yana"]
[Result "1/2-1/2"]
[ECO "A06"]
[WhiteElo "1715"]
[BlackElo "1804"]
[Annotator "NA"]
[PlyCount "104"]
[EventDate "2019.05.31"]
[EventType "swiss"]
[EventCountry "ROU"]
[SourceTitle "playchess.com"]
[Source "ChessBase"]
[SourceQuality "1"]
[TimeControl "40/5400+30:1800+30"]

1. Nf3 {[%emt 0:00:00]} d5 {[%emt 0:00:00]} 2. g3 {[%emt 0:00:00]} Nf6 {[%emt 0:00:01]} 3. Bg2 {[%emt 0:00:00]} c6 {[%emt 0:00:22]} 4. O-O {[%emt 0:00:00]} Bf5 {[%emt 0:00:55]} 5. d3 {[%emt 0:01:24]} h6 {[%emt 0:01:52]} 6. Nbd2 {[%emt 0:00:31]} e6 {[%emt 0:01:17]} 7. b3 {[%emt 0:00:25]} Be7 {[%emt 0:03:00]} 8. Bb2 {[%emt 0:00:26]} O-O {[%emt 0:00:52]} 9. c4 {[%emt 0:03:57]} Nbd7 {[%emt 0:01:53]} 10. Rc1 {[%emt 0:02:21]} a5 {[%emt 0:01:21]} 11. a3 {[%emt 0:04:47]} Qb6 {[%emt 0:07:23]} 12. Bd4 {[%emt 0:20:12]} Qc7 {[%emt 0:07:02]} 13. Nb1 {[%emt 0:05:18]} dxc4 {[%emt 0:10:06]} 14. Rxc4 {[%emt 0:03:43]} e5 {[%emt 0:00:51]} 15. Bb2 {[%emt 0:04:46]} Rad8 {[%emt 0:02:39]} 16. Qc1 {[%emt 0:02:22]} Be6 {[%emt 0:01:07]} 17. Rc3 {[%emt 0:03:37]} Nd5 {[%emt 0:06:42]} 18. Rc2 {[%emt 0:00:53]} f5 {[%emt 0:03:56]} 19. Nbd2 {[%emt 0:02:25]} Bf6 {[%emt 0:02:17]} 20. e4 {[%emt 0:05:20]} Ne7 {[%emt 0:02:21]} 21. Bh3 {[%emt 0:02:38]} Nb6 {[%emt 0:03:24]} 22. Rc3 {[%emt 0:05:54]} Qc8 {[%emt 0:03:30]} 23. Qc2 {[%emt 0:03:48]} f4 {[%emt 0:04:00]} 24. Bg2 {[%emt 0:03:22]} Ng6 {[%emt 0:02:39]} 25. Rc5 {[%emt 0:02:54]} Nd7 26. Rc3 {[%emt 0:01:42]} Nb6 {[%emt 0:08:59]} 27. b4 {[%emt 0:01:59]} axb4 {[%emt 0:01:55]} 28. axb4 {[%emt 0:00:07]} fxg3 {[%emt 0:00:12]} 29. hxg3 {[%emt 0:01:24]} Bh3 {[%emt 0:03:30]} 30. Nh2 {[%emt 0:05:17]} Be6 {[%emt 0:05:59]} 31. b5 {[%emt 0:00:33]} Ne7 32. Ba3 {[%emt 0:00:27]} Qd7 {[%emt 0:01:37]} 33. Bxe7 {[%emt 0:01:15]} Bxe7 {[%emt 0:00:17]} 34. bxc6 {[%emt 0:00:04]} bxc6 {[%emt 0:00:03]} 35. Rxc6 {[%emt 0:00:16]} Rc8 {[%emt 0:00:56]} 36. Rc1 {[%emt 0:01:50]} Rxc6 {[%emt 0:01:01]} 37. Qxc6 {[%emt 0:00:17]} Rc8 {[%emt 0:00:14]} 38. Qxb6 {[%emt 0:01:15]} Rxc1+ {[%emt 0:00:06]} 39. Bf1 {[%emt 0:00:33]} Kh7 {[%emt 0:02:52]} 40. Qb2 {[%emt 0:00:00]} Rc5 {[%emt 0:00:00]} 41. Nhf3 {[%emt 0:03:42]} Bf6 {[%emt 0:03:35]} 42. Qb4 {[%emt 0:01:42]} Rc7 {[%emt 0:01:12]} 43. Qb1 {[%emt 0:02:08]} Rb7 {[%emt 0:01:10]} 44. Qc2 {[%emt 0:00:53]} Qc7 {[%emt 0:00:29]} 45. Nc4 {[%emt 0:01:05]} Bxc4 {[%emt 0:04:13]} 46. dxc4 {[%emt 0:00:05]} Qc5 {[%emt 0:00:48]} 47. Nh2 {[%emt 0:02:58]} Qd4 {[%emt 0:00:55]} 48. Nf3 {[%emt 0:00:48]} Qc5 {[%emt 0:00:27]} 49. Nh2 {[%emt 0:00:15]} Bd8 {[%emt 0:00:45]} 50. Bh3 {[%emt 0:03:15]} Qd4 {[%emt 0:02:43]} 51. Nf3 {[%emt 0:00:25]} Qd6 {[%emt 0:05:22]} 52. c5 {[%emt 0:01:11]} Qf6 {[%emt 0:02:13]} 1/2-1/2

[Event "European School-ch 2019"]
[Site "Mamaia"]
[Date "2019.06.03"]
[Round "4.46"]
[White "Arora, Tashika"]
[Black "Babic, Milana"]
[Result "0-1"]
[ECO "A46"]
[WhiteElo "1471"]
[BlackElo "1677"]
[Annotator "NA"]
[PlyCount "150"]
[EventDate "2019.05.31"]
[EventType "swiss"]
[EventCountry "ROU"]
[SourceTitle "playchess.com"]
[Source "ChessBase"]
[SourceQuality "1"]
[TimeControl "40/5400+30:1800+30"]

1. d4 {[%emt 0:00:00]} Nf6 {[%emt 0:00:00]} 2. Nf3 {[%emt 0:00:00]} d6 {[%emt 0:00:00]} 3. Bf4 {[%emt 0:00:01]} g6 {[%emt 0:00:00]} 4. e3 {[%emt 0:00:30]} Bg7 {[%emt 0:00:00]} 5. Be2 {[%emt 0:00:23]} O-O {[%emt 0:00:14]} 6. O-O {[%emt 0:00:16]} Nbd7 {[%emt 0:00:25]} 7. c4 {[%emt 0:00:44]} c5 {[%emt 0:00:29]} 8. Nc3 {[%emt 0:00:20]} b6 {[%emt 0:02:44]} 9. Rc1 {[%emt 0:05:39]} Nh5 {[%emt 0:03:13]} 10. Bg5 {[%emt 0:00:59]} h6 {[%emt 0:00:29]} 11. Bh4 {[%emt 0:00:17]} Bb7 {[%emt 0:01:24]} 12. Nb5 {[%emt 0:06:56]} Bf6 {[%emt 0:04:32]} 13. Bxf6 {[%emt 0:00:48]} Nhxf6 {[%emt 0:05:02]} 14. Nc3 {[%emt 0:03:28]} Rc8 {[%emt 0:01:57]} 15. d5 {[%emt 0:01:04]} a6 {[%emt 0:07:18]} 16. b3 {[%emt 0:02:03]} Qc7 {[%emt 0:10:05]} 17. Qd2 {[%emt 0:03:37]} Kg7 {[%emt 0:04:51]} 18. e4 {[%emt 0:01:25]} Rfe8 {[%emt 0:01:54]} 19. Rfd1 {[%emt 0:00:59]} e6 {[%emt 0:00:38]} 20. Re1 {[%emt 0:01:15]} exd5 {[%emt 0:02:01]} 21. exd5 {[%emt 0:02:58]} Ne5 {[%emt 0:02:51]} 22. Bd1 {[%emt 0:12:40]} Nfd7 {[%emt 0:05:58]} 23. Nxe5 {[%emt 0:02:51]} Nxe5 {[%emt 0:04:51]} 24. f4 {[%emt 0:01:10]} Nd7 {[%emt 0:00:34]} 25. Bf3 {[%emt 0:00:35]} Nf6 {[%emt 0:02:08]} 26. Qb2 {[%emt 0:01:38]} Kg8 {[%emt 0:02:56]} 27. Qd2 {[%emt 0:08:41]} b5 {[%emt 0:12:54]} 28. cxb5 {[%emt 0:02:10]} axb5 {[%emt 0:00:02]} 29. Nxb5 {[%emt 0:00:20]} Qb6 {[%emt 0:00:04]} 30. Nc3 {[%emt 0:00:20]} c4+ {[%emt 0:00:42]} 31. Kh1 {[%emt 0:05:05]} Rxe1+ {[%emt 0:03:04]} 32. Qxe1 {[%emt 0:04:35]} cxb3 {[%emt 0:01:45]} 33. axb3 {[%emt 0:00:33]} Qxb3 {[%emt 0:02:38]} 34. Qd2 {[%emt 0:02:40]} Bxd5 {[%emt 0:05:35]} 35. Nxd5 {[%emt 0:02:45]} Rxc1+ {[%emt 0:00:07]} 36. Qxc1 {[%emt 0:00:08]} Nxd5 {[%emt 0:00:03]} 37. Bxd5 {[%emt 0:02:16]} Qxd5 {[%emt 0:00:03]} 38. h3 {[%emt 0:01:40]} Qf5 {[%emt 0:00:26]} 39. Qd2 {[%emt 0:02:11]} d5 {[%emt 0:00:39]} 40. Qe3 {[%emt 0:00:00]} Qe6 {[%emt 0:00:00]} 41. Qd4 {[%emt 0:05:02]} f5 {[%emt 0:01:16]} 42. Qa7 {[%emt 0:04:16]} Qe1+ {[%emt 0:02:21]} 43. Kh2 {[%emt 0:00:46]} Qe6 {[%emt 0:01:15]} 44. Qb8+ {[%emt 0:01:35]} Kg7 {[%emt 0:00:24]} 45. Qc7+ {[%emt 0:02:05]} Qf7 {[%emt 0:01:33]} 46. Qc3+ {[%emt 0:00:30]} Kh7 {[%emt 0:00:14]} 47. Qd4 {[%emt 0:00:54]} h5 {[%emt 0:00:15]} 48. Kg1 {[%emt 0:01:30]} h4 {[%emt 0:01:47]} 49. Kf2 {[%emt 0:03:43]} Qe6 {[%emt 0:01:47]} 50. Qa7+ {[%emt 0:00:54]} Kh6 {[%emt 0:00:18]} 51. Qb8 {[%emt 0:00:22]} Qf6 {[%emt 0:00:49]} 52. Qb4 {[%emt 0:02:58]} d4 {[%emt 0:00:56]} 53. Qd2 {[%emt 0:01:45]} Qb6 {[%emt 0:02:30]} 54. Qd3 {[%emt 0:04:37]} Qb2+ {[%emt 0:01:07]} 55. Qe2 {[%emt 0:00:32]} Qc3 {[%emt 0:11:48]} 56. Kf1 {[%emt 0:05:07]} Qc1+ {[%emt 0:00:24]} 57. Qe1 {[%emt 0:01:15]} Qxf4+ {[%emt 0:00:06]} 58. Qf2 {[%emt 0:00:12]} Kg5 {[%emt 0:00:23]} 59. Ke2 {[%emt 0:01:14]} Qxf2+ {[%emt 0:00:11]} 60. Kxf2 {[%emt 0:00:07]} Kf4 {[%emt 0:00:04]} 61. Ke2 {[%emt 0:00:10]} Kg3 {[%emt 0:00:13]} 62. Kd3 {[%emt 0:00:43]} Kxg2 {[%emt 0:00:05]} 63. Kxd4 {[%emt 0:00:06]} Kxh3 {[%emt 0:00:06]} 64. Ke3 {[%emt 0:00:11]} Kg3 {[%emt 0:00:05]} 65. Ke2 {[%emt 0:00:08]} h3 {[%emt 0:00:04]} 66. Ke3 {[%emt 0:00:04]} h2 {[%emt 0:00:05]} 67. Kd4 {[%emt 0:00:09]} h1=Q {[%emt 0:00:09]} 68. Kc5 {[%emt 0:00:18]} Qe4 {[%emt 0:00:10]} 69. Kd6 {[%emt 0:00:07]} Kf4 {[%emt 0:00:13]} 70. Kc5 {[%emt 0:00:08]} Ke5 {[%emt 0:00:10]} 71. Kb5 {[%emt 0:00:11]} Qc2 {[%emt 0:00:07]} 72. Kb4 {[%emt 0:00:07]} Kd5 {[%emt 0:00:08]} 73. Kb5 {[%emt 0:00:05]} Qb3+ {[%emt 0:00:06]} 74. Ka5 {[%emt 0:00:09]} Kc5 {[%emt 0:00:09]} 75. Ka6 {[%emt 0:00:03]} Qb6# {[%emt 0:00:07]} 0-1

[Event "European School-ch 2019"]
[Site "Mamaia"]
[Date "2019.06.03"]
[Round "4.47"]
[White "Rasheva, Nora"]
[Black "Petrenko, Maryna"]
[Result "1-0"]
[ECO "A44"]
[WhiteElo "1473"]
[BlackElo "1307"]
[Annotator "NA"]
[PlyCount "61"]
[EventDate "2019.05.31"]
[EventType "swiss"]
[EventCountry "ROU"]
[SourceTitle "playchess.com"]
[Source "ChessBase"]
[SourceQuality "1"]
[TimeControl "40/5400+30:1800+30"]

1. d4 {[%emt 0:00:00]} c5 {[%emt 0:00:00]} 2. d5 {[%emt 0:00:00]} e5 {[%emt 0:00:00]} 3. c4 {[%emt 0:00:00]} d6 {[%emt 0:00:01]} 4. Nc3 {[%emt 0:00:55]} f5 {[%emt 0:00:53]} 5. e4 {[%emt 0:01:36]} Nf6 {[%emt 0:00:29]} 6. Qc2 {[%emt 0:03:42]} g6 {[%emt 0:10:16]} 7. Bg5 {[%emt 0:15:08]} Bg7 {[%emt 0:03:44]} 8. g3 {[%emt 0:03:56]} Qa5 {[%emt 0:17:03]} 9. Bxf6 {[%emt 0:04:18]} Bxf6 {[%emt 0:00:11]} 10. Bh3 {[%emt 0:07:33]} Nd7 {[%emt 0:13:38]} 11. exf5 {[%emt 0:02:05]} gxf5 {[%emt 0:01:35]} 12. Bxf5 {[%emt 0:05:47]} Ke7 {[%emt 0:07:53]} 13. Qa4 {[%emt 0:06:43]} Qxa4 {[%emt 0:05:49]} 14. Nxa4 {[%emt 0:00:08]} e4 {[%emt 0:00:57]} 15. Bxd7 {[%emt 0:03:52]} Bxd7 {[%emt 0:00:33]} 16. Nc3 {[%emt 0:00:57]} Bxc3+ {[%emt 0:00:58]} 17. bxc3 {[%emt 0:00:05]} b5 {[%emt 0:02:18]} 18. Ne2 {[%emt 0:12:01]} bxc4 {[%emt 0:02:52]} 19. O-O {[%emt 0:01:24]} Bg4 {[%emt 0:01:04]} 20. Nf4 {[%emt 0:00:59]} Kd7 {[%emt 0:00:33]} 21. Rfe1 {[%emt 0:02:03]} Rhe8 {[%emt 0:00:46]} 22. Rab1 {[%emt 0:02:30]} Kc7 {[%emt 0:02:34]} 23. Ng2 {[%emt 0:00:38]} Re5 {[%emt 0:06:44]} 24. Ne3 {[%emt 0:01:03]} Bf3 {[%emt 0:00:10]} 25. Rb2 {[%emt 0:02:55]} Rg8 {[%emt 0:01:37]} 26. Reb1 {[%emt 0:01:29]} Ree8 {[%emt 0:03:28]} 27. Rb7+ {[%emt 0:00:53]} Kd8 {[%emt 0:00:20]} 28. Rxa7 {[%emt 0:00:47]} Kc8 {[%emt 0:00:30]} 29. Nxc4 {[%emt 0:00:33]} Ref8 {[%emt 0:00:47]} 30. Nxd6+ {[%emt 0:00:14]} Kd8 {[%emt 0:00:09]} 31. Rb8# {[%emt 0:00:08]} 1-0

[Event "European School-ch 2019"]
[Site "Mamaia"]
[Date "2019.06.03"]
[Round "4.48"]
[White "Andries, Alexia"]
[Black "Janouskova, Adela"]
[Result "1/2-1/2"]
[ECO "D37"]
[WhiteElo "1287"]
[BlackElo "1330"]
[Annotator "NA"]
[PlyCount "105"]
[EventDate "2019.05.31"]
[EventType "swiss"]
[EventCountry "ROU"]
[SourceTitle "playchess.com"]
[Source "ChessBase"]
[SourceQuality "1"]
[TimeControl "40/5400+30:1800+30"]

1. d4 {[%emt 0:00:00]} d5 {[%emt 0:00:00]} 2. c4 {[%emt 0:02:02]} e6 {[%emt 0:00:00]} 3. Nc3 {[%emt 0:00:37]} Nf6 {[%emt 0:00:06]} 4. Nf3 {[%emt 0:00:57]} Be7 {[%emt 0:00:51]} 5. e3 {[%emt 0:00:14]} O-O {[%emt 0:01:06]} 6. Bd3 {[%emt 0:01:23]} Nbd7 {[%emt 0:00:27]} 7. O-O {[%emt 0:00:24]} b6 {[%emt 0:00:58]} 8. e4 {[%emt 0:00:52]} Bb7 {[%emt 0:03:32]} 9. Re1 {[%emt 0:12:06]} dxc4 {[%emt 0:01:21]} 10. Bxc4 {[%emt 0:00:22]} c5 {[%emt 0:03:47]} 11. Bf4 {[%emt 0:06:21]} cxd4 {[%emt 0:03:28]} 12. Qxd4 {[%emt 0:01:58]} Ng4 {[%emt 0:18:04]} 13. Bg3 {[%emt 0:04:14]} Nc5 {[%emt 0:02:12]} 14. Rad1 {[%emt 0:09:48]} Qxd4 {[%emt 0:06:34]} 15. Nxd4 {[%emt 0:02:14]} Rac8 {[%emt 0:04:34]} 16. Bf1 {[%emt 0:13:03]} Nf6 {[%emt 0:00:50]} 17. f3 {[%emt 0:01:15]} Rfd8 {[%emt 0:02:56]} 18. Ndb5 {[%emt 0:05:43]} a6 {[%emt 0:04:24]} 19. Nd6 {[%emt 0:00:28]} Bxd6 {[%emt 0:00:58]} 20. Bxd6 {[%emt 0:00:10]} h6 {[%emt 0:02:57]} 21. h3 {[%emt 0:07:04]} Ne8 {[%emt 0:02:27]} 22. Bg3 {[%emt 0:01:51]} Nf6 {[%emt 0:01:12]} 23. Rxd8+ {[%emt 0:01:04]} Rxd8 {[%emt 0:00:16]} 24. Bc7 {[%emt 0:00:11]} Rd2 {[%emt 0:01:20]} 25. Bxb6 {[%emt 0:00:20]} Ncd7 {[%emt 0:00:37]} 26. Be3 {[%emt 0:01:09]} Rxb2 {[%emt 0:01:30]} 27. Re2 {[%emt 0:00:26]} Rxe2 {[%emt 0:03:56]} 28. Bxe2 {[%emt 0:00:19]} Kf8 {[%emt 0:00:28]} 29. Kf1 {[%emt 0:00:30]} Ke7 {[%emt 0:00:40]} 30. Ke1 {[%emt 0:01:31]} Kd6 {[%emt 0:00:48]} 31. g4 {[%emt 0:01:07]} Kc7 {[%emt 0:04:45]} 32. Na4 {[%emt 0:01:54]} Kc6 {[%emt 0:01:06]} 33. Kd2 {[%emt 0:00:27]} Kd6 {[%emt 0:04:06]} 34. Kd3 {[%emt 0:01:07]} Bc6 {[%emt 0:01:11]} 35. Nc3 {[%emt 0:00:17]} e5 {[%emt 0:03:12]} 36. Kc2 {[%emt 0:01:42]} Bb7 {[%emt 0:00:14]} 37. Kb3 {[%emt 0:01:44]} Nc5+ {[%emt 0:01:55]} 38. Kb4 {[%emt 0:00:15]} Nfd7 {[%emt 0:00:35]} 39. Na4 {[%emt 0:00:46]} Nxa4 {[%emt 0:01:29]} 40. Kxa4 {[%emt 0:00:00]} Nb8 {[%emt 0:00:00]} 41. Ka5 {[%emt 0:02:59]} Kc7 {[%emt 0:01:22]} 42. Kb4 {[%emt 0:01:50]} Nc6+ {[%emt 0:00:56]} 43. Kc3 {[%emt 0:03:30]} Kd6 {[%emt 0:00:36]} 44. Bc4 {[%emt 0:02:01]} f6 {[%emt 0:00:35]} 45. Bd5 {[%emt 0:00:50]} Nd8 {[%emt 0:00:38]} 46. Bxb7 {[%emt 0:00:54]} Nxb7 {[%emt 0:00:11]} 47. Kb4 {[%emt 0:00:08]} Kc6 {[%emt 0:01:22]} 48. a4 {[%emt 0:01:26]} Kd6 {[%emt 0:01:14]} 49. Bf2 {[%emt 0:02:21]} Kc6 {[%emt 0:01:03]} 50. Be3 {[%emt 0:01:38]} Kd6 {[%emt 0:00:41]} 51. Bf2 {[%emt 0:00:10]} Kc6 {[%emt 0:00:18]} 52. Be3 {[%emt 0:00:08]} Kd6 {[%emt 0:00:11]} 53. Bf2 1/2-1/2